bitfinex/quotes_SOLUSD_20220210
["timestamp","ask_amount","ask_price","bid_price","bid_amount"]
[1644531403646,24.5788,107.98,107.92,67.27629673]
[1644531403848,4.631,108.01,107.92,67.27629673]
[1644531404747,18.5275,108.01,107.92,67.27629673]
[1644531405155,48.52603969,108.02,107.92,67.52629673]
[1644531406348,53.15603969,108.02,107.92,67.52629673]
[1644531406749,67.05113969,108.02,107.92,67.52629673]
[1644531407356,65.7675,108.02,107.92,67.52629673]
[1644531408652,47.2424,108.02,107.93,1.82377853]
[1644531408851,47.2424,108.02,107.95,13.8936]
[1644531409053,47.2424,108.02,107.96,48.50433541]
[1644531409253,19.80753969,108.03,107.96,48.50433541]
[1644531409458,18.5239,108.03,107.96,48.50433541]
[1644531410460,13.8939,108.03,107.96,48.50433541]
[1644531410660,13.8928,108.04,107.97,13.8931]
[1644531410863,4.628,108.03,107.98,46.88177051]
[1644531411264,18.5208,108.04,107.98,46.88177051]
[1644531411464,18.5208,108.04,107.95,46.3092]
[1644531411659,19.80443969,108.04,107.95,46.3092]
[1644531412060,18.5208,108.04,107.95,46.3092]
[1644531412461,19.80443969,108.04,107.95,91.38905931]
[1644531412674,18.5208,108.04,107.95,91.38905931]
[1644531412858,18.5208,108.04,107.97,13.894]
[1644531413660,18.5208,108.04,107.97,60.67092896]
[1644531418262,4.628,108.04,107.97,60.67092896]
[1644531418762,29.4709,108.05,107.97,60.67092896]
[1644531420065,24.8429,108.05,107.97,60.67092896]
[1644531420868,24.8429,108.05,107.97,85.57262896]
[1644531421469,40.01773969,108.05,107.97,85.57262896]
[1644531421668,4.628,108.04,107.97,85.57262896]
[1644531423972,24.8429,108.05,107.97,85.57262896]
[1644531426273,26.12653969,108.05,107.97,91.57262896]
[1644531429177,26.12653969,108.05,107.97,85.57262896]
[1644531430079,30.75453969,108.05,107.97,85.57262896]
[1644531430678,30.75453969,108.05,107.97,85.82262896]
[1644531432778,30.75453969,108.05,107.97,85.57262896]
[1644531433779,1.28363969,108.04,107.97,85.57262896]
[1644531434578,26.12653969,108.05,107.97,85.82262896]
[1644531436485,1.28363969,108.04,107.97,85.82262896]
[1644531436687,5.91163969,108.04,107.97,85.57262896]
[1644531437188,4.628,108.04,107.97,85.57262896]
[1644531437386,4.628,108.04,107.97,85.82262896]
[1644531438489,5.91163969,108.04,107.97,85.57262896]
[1644531439288,1.28363969,108.03,107.97,60.67092896]
[1644531441999,5.91163969,108.03,107.97,60.67092896]
[1644531443809,1.28363969,108.02,107.97,60.67092896]
[1644531447412,1.28363969,108.02,107.97,13.894]
[1644531450213,1.28363969,108.01,107.97,13.894]
[1644531452118,1.28363969,108.02,107.97,60.09769478]
[1644531453418,1.28363969,108.02,107.97,13.894]
[1644531454317,1.28363969,108.02,107.97,59.3186534]
[1644531457523,5.91163969,108.02,107.97,59.3186534]
[1644531457719,5.91163969,108.02,107.97,13.894]
[1644531461122,5.91163969,108.02,107.98,40.67178294]
[1644531461322,15.17653969,108.03,107.98,54.56448294]
[1644531461726,15.17653969,108.03,107.98,13.8927]
[1644531466032,1.28363969,108.02,107.98,13.8927]
[1644531471737,1.28363969,108.01,107.98,13.8927]
[1644531476442,1.28363969,108.01,107.97,13.8941]
[1644531477241,5.91363969,108.01,107.97,13.8941]
[1644531477641,1.28363969,108.0,107.97,13.8941]
[1644531478244,6.06439994,107.99,107.97,13.8941]
[1644531478845,6.06439994,107.99,107.96,13.8953]
[1644531479743,1.28363969,108.0,107.96,13.8953]
[1644531480346,1.28363969,107.99,107.95,13.8964]
[1644531481547,1.28363969,107.99,107.94,13.8976]
[1644531481747,1.28363969,107.99,107.93,24.2963]
[1644531481950,23.47,108.01,107.91,0.024]
[1644531481951,1.28363969,107.98,107.91,0.024]
[1644531482148,5.91463969,107.98,107.91,0.024]
[1644531482348,19.81403969,107.98,107.91,0.024]
[1644531482550,19.81403969,107.98,107.91,42.59015183]
[1644531482748,1.28363969,107.97,107.92,0.024]
[1644531482949,1.28363969,107.97,107.92,13.9002]
[1644531483153,1.28363969,107.97,107.92,13.9242]
[1644531484053,4.631,107.96,107.92,13.9242]
[1644531484252,4.631,107.96,107.92,13.9002]
[1644531485071,4.631,107.96,107.91,13.9251]
[1644531485274,4.631,107.96,107.91,13.9011]
[1644531486375,18.5333,107.96,107.9,0.024]
[1644531486673,18.5333,107.96,107.89,0.024]
[1644531486874,18.5333,107.96,107.87,28.7207]
[1644531487875,18.5333,107.96,107.88,13.905]
[1644531488078,18.5333,107.96,107.89,0.024]
[1644531492779,18.5333,107.96,107.88,0.024]
[1644531492981,18.5333,107.96,107.86,0.024]
[1644531493680,19.81693969,107.96,107.86,0.024]
[1644531494180,18.5333,107.96,107.86,0.024]
[1644531495681,20.76452154,107.96,107.86,0.024]
[1644531496379,22.04816123,107.96,107.86,0.024]
[1644531497484,32.12970862,107.96,107.86,0.024]
[1644531497882,13.9119,107.93,107.86,0.024]
[1644531498082,23.9818,107.92,107.86,0.024]
[1644531498482,23.9818,107.92,107.83,0.024]
[1644531498483,4.634,107.91,107.83,0.024]
[1644531498883,13.9133,107.89,107.83,0.024]
[1644531499084,23.4045,107.88,107.83,0.024]
[1644531500688,37.3181,107.88,107.83,0.024]
[1644531501489,37.3181,107.88,107.79,13.61298425]
[1644531501692,37.3181,107.88,107.82,0.024]
[1644531501889,37.3181,107.88,107.8,0.024]
[1644531502389,29.30036688,107.87,107.8,42.67196278]
[1644531502599,29.30036688,107.87,107.81,0.024]
[1644531502789,29.30036688,107.87,107.81,13.9373]
[1644531503192,37.3181,107.88,107.81,13.9373]
[1644531503389,37.3181,107.88,107.82,0.024]
[1644531504397,22.06273002,107.87,107.82,0.024]
[1644531505299,28.06273002,107.87,107.82,0.024]
[1644531505496,22.06273002,107.87,107.82,0.024]
[1644531505898,22.06273002,107.87,107.78,78.59668147]
[1644531506095,22.06273002,107.87,107.78,62.08433444]
[1644531506296,22.06273002,107.87,107.79,1.82024484]
[1644531506704,22.06273002,107.87,107.81,13.9127]
[1644531507700,22.31273002,107.87,107.81,13.9127]
[1644531508701,36.22723002,107.87,107.8,13.9149]
[1644531508901,4.636,107.86,107.79,29.2486]
[1644531509500,45.26056284,107.85,107.79,29.2486]
[1644531509701,68.70126284,107.85,107.79,29.2486]
[1644531510701,4.636,107.84,107.79,43.1648]
[1644531511330,4.636,107.84,107.79,37.1648]
[1644531511501,4.636,107.84,107.77,1.82024484]
[1644531511904,40.66879636,107.83,107.76,13.9195]
[1644531512102,37.35077419,107.81,107.76,13.9195]
[1644531512701,37.35077419,107.81,107.76,6.0]
[1644531513103,37.35077419,107.81,107.75,13.9214]
[1644531513303,37.60077419,107.81,107.75,19.9214]
[1644531513604,37.60077419,107.81,107.75,21.74164484]
[1644531513803,37.60077419,107.81,107.75,19.9214]
[1644531514905,51.52287419,107.81,107.75,6.0]
[1644531515304,51.52287419,107.81,107.74,13.9229]
[1644531515305,51.52287419,107.81,107.74,19.9229]
[1644531515506,51.52287419,107.81,107.74,20.1729]
[1644531515707,57.52287419,107.81,107.74,20.1729]
[1644531516506,4.639,107.8,107.74,20.1729]
[1644531516706,18.5632,107.8,107.74,20.1729]
[1644531517306,18.5632,107.8,107.74,6.25]
[1644531517508,34.65848501,107.79,107.74,6.25]
[1644531518312,34.65848501,107.79,107.74,6.0]
[1644531518508,34.65848501,107.79,107.73,19.9247]
[1644531518831,48.58328501,107.79,107.73,19.9247]
[1644531519811,37.28720637,107.77,107.73,19.9247]
[1644531520611,37.53720637,107.77,107.73,19.9247]
[1644531526114,37.53720637,107.77,107.73,18.9247]
[1644531527318,37.28720637,107.77,107.73,18.9247]
[1644531527817,43.28720637,107.77,107.73,18.9247]
[1644531528617,37.28720637,107.77,107.73,18.9247]
[1644531529520,37.28720637,107.77,107.73,18.4247]
[1644531530226,37.28720637,107.77,107.73,12.4247]
[1644531530823,43.53720637,107.77,107.73,12.4247]
[1644531531123,37.53720637,107.77,107.73,12.4247]
[1644531533225,43.53720637,107.77,107.72,0.024]
[1644531533426,43.53720637,107.77,107.66,1.3105093]
[1644531533625,28.4188,107.76,107.65,111.9]
[1644531534026,28.4188,107.76,107.65,127.6068822]
[1644531534227,27.31119693,107.75,107.66,45.04486281]
[1644531534428,27.31119693,107.75,107.66,69.69476281]
[1644531534727,27.31119693,107.75,107.69,13.93]
[1644531536829,41.24089693,107.75,107.69,13.93]
[1644531538933,13.9297,107.75,107.69,55.64914719]
[1644531539135,4.641,107.76,107.69,66.69449083]
[1644531539331,1.28363969,107.8,107.69,81.98230265]
[1644531539332,4.641,107.79,107.69,81.98230265]
[1644531539534,4.641,107.79,107.69,87.98230265]
[1644531539735,5.92363969,107.81,107.7,13.88504649]
[1644531539936,23.8985,107.8,107.73,13.9217]
[1644531540133,61.28886274,107.8,107.74,38.55308475]
[1644531540534,61.28886274,107.8,107.74,84.95768475]
[1644531541755,61.28886274,107.8,107.75,13.9214]
[1644531542154,61.53886274,107.8,107.75,13.9214]
[1644531543159,61.53886274,107.8,107.72,46.4117]
[1644531543357,4.639,107.79,107.71,1.82034364]
[1644531543557,67.53886274,107.8,107.71,1.82034364]
[1644531543756,4.64,107.78,107.71,1.82034364]
[1644531543958,27.70804056,107.78,107.71,1.82034364]
[1644531544757,41.63524056,107.78,107.72,13.9272]
[1644531547363,4.64,107.77,107.72,13.9272]
[1644531547558,18.5686,107.77,107.71,13.9286]
[1644531547758,24.5686,107.77,107.71,13.9286]
[1644531548461,37.39036274,107.76,107.71,13.9286]
[1644531549373,37.39036274,107.76,107.71,13.9526]
[1644531550966,37.64036274,107.76,107.71,13.4526]
[1644531551772,4.64,107.78,107.71,13.4526]
[1644531551972,29.82213969,107.8,107.72,0.024]
[1644531552173,25.18213969,107.8,107.74,13.9227]
[1644531552571,23.8985,107.8,107.74,13.9467]
[1644531552775,39.27720946,107.79,107.74,13.9467]
[1644531553777,43.91620946,107.79,107.74,13.9467]
[1644531554780,39.27720946,107.79,107.74,13.9467]
[1644531556283,45.27720946,107.79,107.74,13.9467]
[1644531556688,39.27720946,107.79,107.74,13.9467]
[1644531556891,45.27720946,107.79,107.74,13.9467]
[1644531557490,39.27720946,107.79,107.74,52.68907024]
[1644531557693,39.27720946,107.79,107.74,13.9467]
[1644531558090,39.27720946,107.79,107.74,0.024]
[1644531558290,4.639,107.78,107.74,0.024]
[1644531558790,25.82119384,107.77,107.73,13.9254]
[1644531559391,25.82119384,107.77,107.72,0.024]
[1644531559892,4.64,107.76,107.7,0.024]
[1644531560308,36.36654904,107.75,107.69,14.34793538]
[1644531560710,36.36654904,107.75,107.7,13.9295]
[1644531560914,41.00754904,107.75,107.7,13.9295]
[1644531561311,42.36654904,107.75,107.7,13.9295]
[1644531561610,36.36654904,107.75,107.7,13.9295]
[1644531561809,42.36654904,107.75,107.7,13.9295]
[1644531562011,6.0,107.75,107.7,13.9295]
[1644531563009,44.17197397,107.75,107.7,13.4295]
[1644531563610,44.17197397,107.75,107.7,12.9295]
[1644531564009,58.10267397,107.75,107.69,13.931]
[1644531564210,62.74367397,107.75,107.69,13.931]
[1644531564509,62.74367397,107.75,107.69,4.84747658]
[1644531564710,62.74367397,107.75,107.65,1.3105093]
[1644531564909,24.5958,107.74,107.64,26.12735294]
[1644531565109,13.9347,107.72,107.67,13.9332]
[1644531565311,24.5958,107.74,107.65,1.82034364]
[1644531565508,12.34290591,107.73,107.65,43.7102516]
[1644531565709,12.34290591,107.73,107.65,64.49980921]
[1644531566110,22.8746,107.72,107.65,79.53762103]
[1644531566309,36.3266741,107.71,107.65,79.53762103]
[1644531566511,36.3266741,107.71,107.67,13.9337]
[1644531566710,22.8746,107.72,107.67,13.9337]
[1644531566910,27.5166,107.72,107.67,13.9337]
[1644531569346,45.80346296,107.71,107.67,13.9337]
[1644531575448,45.80346296,107.71,107.66,13.9352]
[1644531575852,59.73946296,107.71,107.66,13.9352]
[1644531576750,45.80346296,107.71,107.66,13.9352]
[1644531577957,4.643,107.73,107.66,13.9352]
[1644531577958,13.9334,107.73,107.66,13.9352]
[1644531578153,27.4658,107.74,107.67,0.024]
[1644531578353,1.28363969,107.77,107.69,13.9293]
[1644531578553,181.9971,107.83,107.7,0.024]
[1644531578554,1.28363969,107.79,107.7,0.024]
[1644531578752,5.92463969,107.79,107.7,1.84375734]
[1644531578973,37.33731461,107.78,107.71,0.024]
[1644531579179,41.97731461,107.78,107.71,0.024]
[1644531579382,41.97731461,107.78,107.72,13.9269]
[1644531579576,43.2609543,107.78,107.72,13.9269]
[1644531579776,49.2609543,107.78,107.72,13.9269]
[1644531580378,47.97731461,107.78,107.72,13.9269]
[1644531580980,47.97731461,107.78,107.72,13.9509]
[1644531582380,4.64,107.78,107.72,56.2045079]
[1644531582582,29.36013969,107.8,107.72,66.20726524]
[1644531582780,23.4365,107.8,107.73,0.024]
[1644531582979,4.639,107.81,107.75,13.9211]
[1644531583180,26.19753969,107.82,107.75,23.5381]
[1644531583381,62.09745055,107.82,107.75,59.26986925]
[1644531583581,62.09745055,107.82,107.75,61.08962659]
[1644531584182,24.66413969,107.83,107.75,61.08962659]
[1644531584382,4.638,107.82,107.75,61.08962659]
[1644531584983,24.66413969,107.83,107.75,61.08962659]
[1644531585183,8.07153092,107.82,107.75,61.08962659]
[1644531585787,24.66413969,107.83,107.75,61.33962659]
[1644531585986,23.3805,107.83,107.75,61.33962659]
[1644531586687,39.19178672,107.84,107.75,61.33962659]
[1644531587885,39.19178672,107.84,107.75,67.33962659]
[1644531588086,4.638,107.85,107.75,67.33962659]
[1644531588287,4.638,107.86,107.75,105.27041912]
[1644531588685,1.28363969,107.88,107.75,197.57041912]
[1644531588886,4.636,107.87,107.75,221.04371912]
[1644531589087,37.31084511,107.86,107.75,221.04371912]
[1644531589890,37.31084511,107.86,107.75,128.74371912]
[1644531590288,43.31084511,107.86,107.75,128.74371912]
[1644531591789,43.31084511,107.86,107.75,221.04371912]
[1644531592289,43.31084511,107.86,107.75,128.74371912]
[1644531594491,43.31084511,107.86,107.75,221.04371912]
[1644531597195,43.31084511,107.86,107.76,4.638]
[1644531597395,6.0,107.86,107.79,13.9108]
[1644531597594,6.0,107.86,107.79,22.4148]
[1644531597792,4.638,107.89,107.79,30.48455734]
[1644531598397,48.43807275,107.88,107.8,46.90343376]
[1644531598594,4.636,107.87,107.82,13.9113]
[1644531598796,4.636,107.87,107.82,50.09756485]
[1644531598996,4.636,107.89,107.82,50.09756485]
[1644531599796,43.51544176,107.89,107.82,50.09756485]
[1644531601303,9.636,107.89,107.82,50.34756485]
[1644531601503,9.636,107.89,107.82,58.10656485]
[1644531601700,23.4358,107.9,107.82,59.92632219]
[1644531602100,23.4358,107.9,107.82,64.56132219]
[1644531602303,23.4358,107.9,107.82,62.74156485]
[1644531602501,28.0708,107.9,107.82,64.10656485]
[1644531602705,28.0708,107.9,107.82,59.92632219]
[1644531603104,21.23515648,107.89,107.82,59.67632219]
[1644531603307,21.23515648,107.89,107.82,50.09756485]
[1644531603507,21.23515648,107.89,107.82,56.09756485]
[1644531603704,28.0708,107.9,107.82,50.09756485]
[1644531604305,28.0708,107.9,107.82,50.34756485]
[1644531605006,23.4358,107.9,107.82,50.34756485]
[1644531607534,30.48203969,107.92,107.82,50.34756485]
[1644531607734,30.5634,107.92,107.85,13.9043]
[1644531607937,6.0,107.92,107.85,24.8593]
[1644531608135,6.0,107.92,107.86,1.81975734]
[1644531608335,6.0,107.92,107.86,2.06975734]
[1644531608537,48.63276705,107.94,107.87,40.68094488]
[1644531608735,4.633,107.93,107.87,42.75070222]
[1644531608935,53.34912736,107.94,107.87,42.75070222]
[1644531609335,54.63276705,107.94,107.87,42.75070222]
[1644531609736,54.63276705,107.94,107.87,56.65340222]
[1644531609938,6.0,107.94,107.87,56.65340222]
[1644531610537,1.28363969,107.95,107.87,56.65340222]
[1644531611139,37.40927049,107.95,107.87,56.65340222]
[1644531611436,37.40927049,107.95,107.87,62.65340222]
[1644531611935,1.28363969,107.95,107.87,62.65340222]
[1644531612437,1.28363969,107.95,107.87,60.83364488]
[1644531612837,45.49173624,107.95,107.87,60.83364488]
[1644531613237,1.28363969,107.95,107.87,60.83364488]
[1644531616340,47.11503969,107.96,107.87,75.62320249]
[1644531616541,47.11503969,107.96,107.88,96.933]
[1644531616741,1.28363969,107.96,107.9,13.897]
[1644531616943,1.28363969,107.97,107.91,37.30185692]
[1644531617344,1.28363969,107.97,107.92,4.632]
[1644531617643,5.96073047,107.99,107.92,4.632]
[1644531617841,2.59249854,108.02,107.94,13.891]
[1644531617842,1.28363969,108.01,107.94,13.891]
[1644531618244,1.28363969,108.01,107.95,37.97187524]
[1644531618646,1.28363969,108.01,107.95,38.22187524]
[1644531619046,1.32873047,108.02,107.95,44.22187524]
[1644531619252,1.28363969,108.02,107.95,44.22187524]
[1644531619645,1.28363969,108.02,107.97,43.68736261]
[1644531619844,1.28363969,108.02,107.97,43.93736261]
[1644531620651,1.28363969,108.02,107.98,13.8894]
[1644531620849,0.04509078,108.03,107.98,13.8894]
[1644531620850,1.32873047,108.03,107.98,13.8894]
[1644531621150,1.32873047,108.04,107.98,13.8894]
[1644531621463,1.32873047,108.04,107.99,45.45459366]
[1644531621649,1.28363969,108.05,107.99,45.45459366]
[1644531621849,1.28363969,108.05,107.99,45.70459366]
[1644531622454,1.28363969,108.06,107.99,45.70459366]
[1644531622850,1.28363969,108.06,108.01,36.02220899]
[1644531623254,1.28363969,108.06,108.01,36.27220899]
[1644531623452,1.32873047,108.07,108.01,36.27220899]
[1644531623652,1.28363969,108.07,108.01,36.27220899]
[1644531624052,7.28363969,108.07,108.01,36.27220899]
[1644531624251,20.87077241,108.07,108.01,36.02220899]
[1644531624452,1.28363969,108.06,108.01,36.02220899]
[1644531624653,4.628,108.06,108.02,13.8853]
[1644531624852,5.91163969,108.06,108.02,13.8853]
[1644531625052,4.628,108.06,108.02,13.8853]
[1644531625253,5.91163969,108.06,108.02,13.8853]
[1644531625451,4.628,108.06,108.01,43.24420145]
[1644531625654,19.58713272,108.07,108.01,43.24420145]
[1644531625856,19.58713272,108.07,108.02,45.43471753]
[1644531626054,6.0,108.07,108.02,45.43471753]
[1644531626254,47.38643047,108.08,108.02,45.43471753]
[1644531626454,53.38643047,108.08,108.02,45.43471753]
[1644531626857,53.38643047,108.08,108.02,59.32001753]
[1644531628461,4.627,108.07,108.02,59.32001753]
[1644531628658,58.01343047,108.08,108.02,59.32001753]
[1644531628861,50.72979078,108.08,108.02,59.32001753]
[1644531629068,52.01343047,108.08,108.02,59.32001753]
[1644531630465,59.73232395,108.08,108.02,59.32001753]
[1644531631886,55.10532395,108.08,108.02,59.32001753]
[1644531632387,61.10532395,108.08,108.02,59.32001753]
[1644531632687,53.38643047,108.08,108.02,59.32001753]
[1644531633789,53.38643047,108.08,108.02,59.57001753]
[1644531633992,53.34133969,108.08,108.02,59.57001753]
[1644531634190,46.0577,108.08,108.02,59.57001753]
[1644531634591,1.28363969,108.09,108.02,59.57001753]
[1644531634592,1.32873047,108.09,108.02,59.57001753]
[1644531634790,0.04509078,108.08,108.02,59.57001753]
[1644531635090,7.28363969,108.09,108.02,61.38977487]
[1644531635291,0.04509078,108.08,108.02,61.38977487]
[1644531635492,7.28363969,108.09,108.02,61.38977487]
[1644531636091,7.28363969,108.09,108.02,70.99677487]
[1644531636289,5.95573047,108.1,108.02,169.29677487]
[1644531636490,1.32873047,108.1,108.02,199.1241443]
[1644531637290,0.04509078,108.1,108.02,199.1241443]
[1644531637492,1.32873047,108.11,108.02,199.1241443]
[1644531637690,0.04509078,108.09,108.02,199.1241443]
[1644531637891,0.04509078,108.1,108.02,199.1241443]
[1644531638093,0.04509078,108.1,108.05,13.8781]
[1644531638291,1.32873047,108.11,108.05,14.1281]
[1644531638491,1.32873047,108.11,108.06,1.81975734]
[1644531638794,1.28363969,108.11,108.06,1.81975734]
[1644531639192,1.28363969,108.11,108.07,45.29111474]
[1644531639696,1.28363969,108.11,108.07,59.16921474]
[1644531641400,1.28363969,108.1,108.07,59.16921474]
[1644531643399,1.28363969,108.1,108.07,60.98897208]
[1644531643798,1.28363969,108.1,108.07,61.23897208]
[1644531644002,1.28363969,108.11,108.07,61.23897208]
[1644531644403,1.28363969,108.1,108.07,61.23897208]
[1644531645605,3.969e-05,108.1,108.07,61.23897208]
[1644531645802,22.7722,108.12,108.07,61.23897208]
[1644531647004,0.04509078,108.13,108.07,65.86397208]
[1644531647202,0.04509078,108.13,108.07,71.86397208]
[1644531647802,0.04509078,108.14,108.07,71.86397208]
[1644531648102,0.04509078,108.14,108.07,178.95352969]
[1644531648301,0.04509078,108.14,108.07,193.99134151]
[1644531648701,0.04509078,108.15,108.07,193.99134151]
[1644531648903,0.04509078,108.13,108.07,193.99134151]
[1644531649107,0.04509078,108.15,108.07,193.99134151]
[1644531649306,0.04509078,108.15,108.07,201.77734151]
[1644531649504,0.04509078,108.15,108.07,202.08470078]
[1644531649706,0.04509078,108.17,108.08,7.78150573]
[1644531649905,0.04509078,108.14,108.11,92.3]
[1644531650109,0.04509078,108.16,108.11,92.3]
[1644531650307,0.04509078,108.18,108.12,47.89892413]
[1644531650805,6.04245167,108.2,108.13,1.81975734]
[1644531651007,0.04509078,108.19,108.13,1.81975734]
[1644531651211,0.04509078,108.19,108.13,8.06975734]
[1644531651411,0.04509078,108.19,108.14,35.51292944]
[1644531651612,2.59249854,108.21,108.14,37.33268678]
[1644531651809,0.04509078,108.19,108.16,35.61898816]
[1644531652011,6.06439994,108.18,108.16,17.11401505]
[1644531652212,26.33618932,108.22,108.16,17.11401505]
[1644531652410,0.04509078,108.2,108.16,17.11401505]
[1644531652613,32.29109854,108.22,108.16,17.11401505]
[1644531652812,29.74369078,108.22,108.16,17.11401505]
[1644531653519,29.74369078,108.22,108.16,17.36401505]
[1644531653718,29.74369078,108.22,108.17,13.8659]
[1644531653922,29.6986,108.22,108.16,34.44836943]
[1644531654223,29.74369078,108.22,108.17,1.81975734]
[1644531654420,23.6986,108.22,108.17,1.81975734]
[1644531654624,35.93234368,108.21,108.17,1.81975734]
[1644531655222,35.93234368,108.21,108.17,8.06975734]
[1644531655822,35.93234368,108.21,108.17,21.93565734]
[1644531660849,23.6986,108.22,108.17,21.93565734]
[1644531661850,0.04509078,108.24,108.19,13.8565]
[1644531662045,0.04509078,108.25,108.2,92.3]
[1644531662245,0.04509078,108.32,108.21,4.618]
[1644531662444,0.04509078,108.32,108.21,16.85318362]
[1644531662445,4.618,108.31,108.21,16.85318362]
[1644531662648,0.04509078,108.3,108.21,40.59881931]
[1644531662846,0.04509078,108.3,108.22,37.97830612]
[1644531663045,46.39281306,108.29,108.24,13.8551]
[1644531663245,46.39281306,108.29,108.24,14.1051]
[1644531664353,46.39281306,108.29,108.24,59.04501806]
[1644531664550,4.618,108.3,108.24,60.86038986]
[1644531664750,4.618,108.31,108.24,60.86038986]
[1644531665553,46.99081518,108.3,108.24,60.86038986]
[1644531665750,70.14210596,108.3,108.24,60.86038986]
[1644531667857,70.14210596,108.3,108.24,66.86038986]
[1644531668053,70.14210596,108.3,108.24,60.86038986]
[1644531668255,70.14210596,108.3,108.24,66.86038986]
[1644531668455,70.14210596,108.3,108.24,74.77548986]
[1644531668855,70.14210596,108.3,108.24,80.77548986]
[1644531669056,70.14210596,108.3,108.24,74.77548986]
[1644531669357,70.39210596,108.3,108.24,80.77548986]
[1644531669556,70.34701518,108.3,108.24,74.77548986]
[1644531670356,70.09701518,108.3,108.24,74.77548986]
[1644531671256,23.1062,108.3,108.24,74.77548986]
[1644531671656,23.1062,108.3,108.24,80.77548986]
[1644531673959,23.1062,108.3,108.24,98.27112555]
[1644531679676,23.15129078,108.3,108.24,98.27112555]
[1644531680478,23.1062,108.3,108.24,98.27112555]
[1644531681375,23.1062,108.3,108.24,113.30893737]
[1644531683383,23.1062,108.3,108.24,117.92693737]
[1644531683782,0.04509078,108.32,108.24,117.92693737]
[1644531685409,23.73239078,108.32,108.24,117.92693737]
[1644531689018,23.73239078,108.32,108.24,210.22693737]
[1644531690311,23.73239078,108.32,108.24,117.92693737]
[1644531692913,23.73239078,108.32,108.24,210.22693737]
[1644531693118,23.73239078,108.32,108.24,205.60893737]
[1644531694216,23.73239078,108.32,108.26,34.94160746]
[1644531694418,23.73239078,108.32,108.28,47.18337137]
[1644531694617,23.6873,108.32,108.28,47.18337137]
[1644531694818,23.6873,108.32,108.28,47.43337137]
[1644531695021,23.6873,108.32,108.28,49.24165605]
[1644531695518,23.6873,108.32,108.28,66.73729174]
[1644531695719,23.6873,108.32,108.29,13.8489]
[1644531696119,23.6873,108.32,108.29,14.0989]
[1644531696921,23.6873,108.32,108.3,46.50244405]
[1644531697119,23.6873,108.32,108.31,13.8488]
[1644531697319,23.6873,108.32,108.31,14.0988]
[1644531697720,23.7084,108.33,108.31,14.0988]
[1644531698122,23.7084,108.33,108.32,41.51472306]
[1644531698322,0.04509078,108.35,108.32,41.51472306]
[1644531698622,3.27817388,108.35,108.32,41.51472306]
[1644531698821,9.27817388,108.35,108.32,41.51472306]
[1644531699021,3.27817388,108.34,108.32,41.51472306]
[1644531699620,6.06439994,108.33,108.32,41.51472306]
[1644531699820,6.0,108.35,108.32,41.51472306]
[1644531700022,3.27967532,108.34,108.32,41.51472306]
[1644531700232,3.27967532,108.34,108.31,13.8488]
[1644531700424,7.169,108.34,108.29,13.8512]
[1644531700627,4.66109078,108.33,108.26,46.1706]
[1644531700825,22.5835,108.32,108.26,46.1706]
[1644531701223,22.5835,108.32,108.27,41.77028182]
[1644531701622,40.48099564,108.31,108.27,41.77028182]
[1644531701822,49.97299564,108.31,108.24,65.48302037]
[1644531702022,23.2764,108.3,108.24,17.49563569]
[1644531702422,23.32149078,108.3,108.24,17.49563569]
[1644531702824,23.32149078,108.3,108.25,38.289414]
[1644531703026,23.2764,108.3,108.25,38.289414]
[1644531703429,36.93889523,108.29,108.25,52.145714]
[1644531703627,36.93889523,108.29,108.21,17.49563569]
[1644531703827,27.45709078,108.28,108.21,17.49563569]
[1644531704027,35.78509078,108.28,108.19,1.80828468]
[1644531704227,0.04509078,108.27,108.18,17.49563569]
[1644531704626,45.43938285,108.27,108.19,37.11161359]
[1644531704828,23.5675,108.26,108.19,37.11161359]
[1644531705228,45.73957597,108.25,108.19,37.11161359]
[1644531705427,57.08466675,108.25,108.16,16.48498539]
[1644531705630,57.08466675,108.25,108.16,14.67670071]
[1644531705631,28.1875,108.24,108.16,14.67670071]
[1644531705828,28.1875,108.24,108.16,13.8674]
[1644531706029,34.1875,108.24,108.16,13.8674]
[1644531706230,56.8089,108.24,108.16,13.8674]
[1644531706428,45.39429207,108.23,108.17,43.92705408]
[1644531706630,4.621,108.22,108.17,43.92705408]
[1644531706830,15.824,108.22,108.17,44.17705408]
[1644531707430,15.824,108.22,108.17,43.92705408]
[1644531707630,21.824,108.22,108.17,43.92705408]